[Event "FIDE World Rapid Chess Championship 2021"]
[White "Erdos, Viktor"]
[Black "Kantor, Gergely"]
[WhiteFideId "719978"]
[BlackFideId "751499"]
[WhiteElo "2601"]
[BlackElo "2454"]
[Result "1-0"]
[Round "03"]
[TimeControl "900+10"]
[Date "2021.12.26"]
[WhiteClock "0:01:06"]
[BlackClock "0:01:07"]

1. d4 {[%clk 0:15:27]}  Nf6 {[%clk 0:15:26]} 2. Nc3 {[%clk 0:15:27]}  d5 {[%clk 0:15:26]} 3. Bf4 {[%clk 0:15:27]}  a6 {[%clk 0:15:26]} 4. e3 {[%clk 0:15:35]}  b5 {[%clk 0:15:26]} 5. a3 {[%clk 0:15:35]}  e6 {[%clk 0:15:26]} 6. Nf3 {[%clk 0:15:41]}  c5 {[%clk 0:13:59]} 7. Ne5 {[%clk 0:15:41]}  Bb7 {[%clk 0:13:59]} 8. Nd3 {[%clk 0:13:34]}  c4 {[%clk 0:13:46]} 9. Nc5 {[%clk 0:11:46]}  Qc8 {[%clk 0:13:46]} 10. Nxb7 {[%clk 0:11:48]}  Qxb7 {[%clk 0:11:01]} 11. g4 {[%clk 0:11:48]}  b4 {[%clk 0:11:10]} 12. axb4 {[%clk 0:10:07]}  Qxb4 {[%clk 0:09:57]} 13. Ra2 {[%clk 0:06:10]}  Ne4 {[%clk 0:09:07]} 14. Qa1 {[%clk 0:06:10]}  g5 {[%clk 0:08:24]} 15. Be5 {[%clk 0:05:41]}  f6 {[%clk 0:06:57]} 16. Bxb8 {[%clk 0:04:00]}  Nxc3 {[%clk 0:07:02]} 17. bxc3 {[%clk 0:03:19]}  Qxb8 {[%clk 0:05:33]} 18. h4 {[%clk 0:03:19]}  Bd6 {[%clk 0:05:42]} 19. hxg5 {[%clk 0:02:34]}  fxg5 {[%clk 0:05:42]} 20. Rxa6 {[%clk 0:02:34]}  Rxa6 {[%clk 0:05:42]} 21. Qxa6 {[%clk 0:02:34]}  Qb1+ {[%clk 0:05:23]} 22. Kd2 {[%clk 0:02:25]}  O-O {[%clk 0:05:23]} 23. f3 {[%clk 0:02:33]}  Rxf3 {[%clk 0:03:22]} 24. Qc8+ {[%clk 0:00:53]}  Rf8 {[%clk 0:03:22]} 25. Qxe6+ {[%clk 0:00:53]}  Kh8 {[%clk 0:00:45]} 26. Qxd5 {[%clk 0:01:10]}  Rxf1 {[%clk 0:00:45]} 27. Rxf1 {[%clk 0:01:10]}  Qxf1 {[%clk 0:00:45]} 28. Qxd6 {[%clk 0:01:10]}  Qf2+ {[%clk 0:00:45]} 29. Kc1 {[%clk 0:00:34]}  Qxe3+ {[%clk 0:00:36]} 30. Kb2 {[%clk 0:00:34]}  Qf4 {[%clk 0:00:36]} 31. Qd7 {[%clk 0:00:32]}  Qb8+ {[%clk 0:00:13]} 32. Ka3 {[%clk 0:00:32]}  Qb1 {[%clk 0:00:13]} 33. Qd8+ {[%clk 0:00:32]}  Kg7 {[%clk 0:00:13]} 34. Qxg5+ {[%clk 0:00:32]}  Kf7 {[%clk 0:00:13]} 35. Qd5+ {[%clk 0:00:32]}  Kg7 {[%clk 0:00:13]} 36. Qxc4 {[%clk 0:00:32]}  Qxc2 {[%clk 0:00:13]} 37. Kb4 {[%clk 0:00:32]}  Qb2+ {[%clk 0:00:13]} 38. Qb3 {[%clk 0:00:32]}  Qe2 {[%clk 0:00:13]} 39. Ka5 {[%clk 0:00:19]}  Qxg4 {[%clk 0:00:55]} 40. Qb7+ {[%clk 0:00:19]}  Kg6 {[%clk 0:00:55]} 41. Qc6+ {[%clk 0:00:19]}  Kg7 {[%clk 0:00:55]} 42. d5 {[%clk 0:00:19]}  h5 {[%clk 0:01:02]} 43. d6 {[%clk 0:00:26]}  Qf5+ {[%clk 0:01:02]} 44. Ka6 {[%clk 0:00:26]}  Qd3+ {[%clk 0:01:02]} 45. Kb7 {[%clk 0:00:26]}  h4 {[%clk 0:01:02]} 46. d7 {[%clk 0:00:26]}  h3 {[%clk 0:01:02]} 47. Kc7 {[%clk 0:00:45]}  Qg3+ {[%clk 0:00:24]} 48. Kc8 {[%clk 0:00:45]}  Qg4 {[%clk 0:00:24]} 49. Kb8 {[%clk 0:00:45]}  Qf4+ {[%clk 0:00:34]} 50. Ka7 {[%clk 0:00:23]}  Qe3+ {[%clk 0:00:34]} 51. Qb6 {[%clk 0:00:23]}  Qxb6+ {[%clk 0:00:34]} 52. Kxb6 {[%clk 0:00:23]}  h2 {[%clk 0:00:34]} 53. d8=Q {[%clk 0:00:23]}  h1=Q {[%clk 0:00:34]} 54. Qd7+ {[%clk 0:00:23]}  Kf8 {[%clk 0:00:34]} 55. Qc8+ {[%clk 0:00:23]}  Ke7 {[%clk 0:00:34]} 56. Qb7+ {[%clk 0:00:23]}  Qxb7+ {[%clk 0:00:34]} 57. Kxb7 {[%clk 0:00:23]}  Kd6 {[%clk 0:00:34]} 58. Kb6 {[%clk 0:00:23]}  Kd5 {[%clk 0:01:07]} 59. Kb5 {[%clk 0:01:06]}  Kd6 {[%clk 0:01:07]} 60. c4 {[%clk 0:01:06]}  Kd7 {[%clk 0:01:07]} 61. Kb6 {[%clk 0:01:06]}  Kd6 {[%clk 0:01:07]} 62. c5+ {[%clk 0:01:06]}  Kd7 {[%clk 0:01:07]} 63. Kb7 {[%clk 0:01:06]} 1-0


[Site "http://www.Chess.com"]

[Event "FIDE World Rapid Chess Championship 2021"]
[White "Ivic, Velimir"]
[Black "Adly, Ahmed"]
[WhiteFideId "950122"]
[BlackFideId "10601619"]
[WhiteElo "2357"]
[BlackElo "2597"]
[Result "1/2-1/2"]
[Round "03"]
[TimeControl "900+10"]
[Date "2021.12.26"]
[WhiteClock "0:00:15"]
[BlackClock "0:02:40"]

1. e4 {[%clk 0:15:25]}  c5 {[%clk 0:15:28]} 2. Nf3 {[%clk 0:15:25]}  Nf6 {[%clk 0:15:28]} 3. e5 {[%clk 0:15:25]}  Nd5 {[%clk 0:15:28]} 4. Nc3 {[%clk 0:15:25]}  Nxc3 {[%clk 0:15:28]} 5. dxc3 {[%clk 0:15:25]}  Nc6 {[%clk 0:15:28]} 6. Bf4 {[%clk 0:15:25]}  Qc7 {[%clk 0:15:28]} 7. Qd2 {[%clk 0:15:25]}  e6 {[%clk 0:16:12]} 8. h4 {[%clk 0:15:43]}  h6 {[%clk 0:16:12]} 9. h5 {[%clk 0:15:43]}  Rb8 {[%clk 0:16:12]} 10. c4 {[%clk 0:15:43]}  b6 {[%clk 0:16:13]} 11. Rh3 {[%clk 0:14:22]}  Bb7 {[%clk 0:16:13]} 12. O-O-O {[%clk 0:14:22]}  a6 {[%clk 0:15:58]} 13. Kb1 {[%clk 0:12:51]}  Na5 {[%clk 0:15:58]} 14. Qe1 {[%clk 0:12:51]}  Ba8 {[%clk 0:15:44]} 15. Nd2 {[%clk 0:12:14]}  b5 {[%clk 0:14:14]} 16. b3 {[%clk 0:12:14]}  Bc6 {[%clk 0:14:16]} 17. Rg3 {[%clk 0:10:32]}  Ba8 {[%clk 0:11:31]} 18. Bd3 {[%clk 0:09:16]}  Nc6 {[%clk 0:08:10]} 19. Be4 {[%clk 0:08:02]}  Qa5 {[%clk 0:07:57]} 20. c3 {[%clk 0:06:45]}  b4 {[%clk 0:06:58]} 21. Bxc6 {[%clk 0:06:04]}  Bxc6 {[%clk 0:06:58]} 22. Ne4 {[%clk 0:06:04]}  bxc3 {[%clk 0:06:58]} 23. Nxc3 {[%clk 0:06:05]}  Qb4 {[%clk 0:04:55]} 24. Qe2 {[%clk 0:06:05]}  a5 {[%clk 0:04:49]} 25. Ne4 {[%clk 0:03:36]}  a4 {[%clk 0:04:49]} 26. Nd6+ {[%clk 0:01:59]}  Bxd6 {[%clk 0:04:07]} 27. Rxd6 {[%clk 0:01:59]}  Ke7 {[%clk 0:04:07]} 28. Bd2 {[%clk 0:01:59]}  Qb7 {[%clk 0:03:36]} 29. Qg4 {[%clk 0:01:20]}  Rhg8 {[%clk 0:03:20]} 30. Qh4+ {[%clk 0:00:41]}  f6 {[%clk 0:02:38]} 31. Rxg7+ {[%clk 0:00:41]}  Rxg7 {[%clk 0:02:38]} 32. Qxf6+ {[%clk 0:00:41]}  Ke8 {[%clk 0:02:38]} 33. Qxg7 {[%clk 0:00:41]}  axb3 {[%clk 0:02:38]} 34. Qh8+ {[%clk 0:00:41]}  Kf7 {[%clk 0:02:38]} 35. Qh7+ {[%clk 0:00:15]}  Ke8 {[%clk 0:02:33]} 36. Qh8+ {[%clk 0:00:15]}  Kf7 {[%clk 0:02:40]} 1/2-1/2


[Site "http://www.Chess.com"]

[Event "FIDE World Rapid Chess Championship 2021"]
[White "Sindarov, Javokhir"]
[Black "Bluebaum, Matthias"]
[WhiteFideId "14205483"]
[BlackFideId "24651516"]
[WhiteElo "2353"]
[BlackElo "2575"]
[Result "1/2-1/2"]
[Round "03"]
[TimeControl "900+10"]
[Date "2021.12.26"]
[WhiteClock "0:00:16"]
[BlackClock "0:02:23"]

1. e4 {[%clk 0:15:17]}  c6 {[%clk 0:15:19]} 2. Nf3 {[%clk 0:15:17]}  d5 {[%clk 0:15:19]} 3. Nc3 {[%clk 0:16:06]}  dxe4 {[%clk 0:16:18]} 4. Nxe4 {[%clk 0:16:06]}  Nf6 {[%clk 0:16:18]} 5. Qe2 {[%clk 0:16:06]}  Nxe4 {[%clk 0:16:18]} 6. Qxe4 {[%clk 0:16:06]}  Nd7 {[%clk 0:16:18]} 7. Bc4 {[%clk 0:16:06]}  Nf6 {[%clk 0:16:18]} 8. Ne5 {[%clk 0:16:06]}  e6 {[%clk 0:16:18]} 9. Qe2 {[%clk 0:16:06]}  b5 {[%clk 0:16:18]} 10. Bd3 {[%clk 0:16:06]}  Qc7 {[%clk 0:16:18]} 11. a4 {[%clk 0:16:06]}  Bd6 {[%clk 0:16:18]} 12. Nxc6 {[%clk 0:16:06]}  b4 {[%clk 0:16:18]} 13. Nd4 {[%clk 0:16:06]}  a6 {[%clk 0:16:18]} 14. Nf5 {[%clk 0:16:06]}  Bb7 {[%clk 0:16:18]} 15. Nxd6+ {[%clk 0:16:06]}  Qxd6 {[%clk 0:16:18]} 16. O-O {[%clk 0:16:06]}  h5 {[%clk 0:15:13]} 17. Qe3 {[%clk 0:16:24]}  Rd8 {[%clk 0:15:13]} 18. f3 {[%clk 0:15:20]}  h4 {[%clk 0:12:51]} 19. b3 {[%clk 0:12:54]}  Nd5 {[%clk 0:10:46]} 20. Qf2 {[%clk 0:12:54]}  f5 {[%clk 0:10:11]} 21. Bb2 {[%clk 0:11:45]}  Nf4 {[%clk 0:10:11]} 22. Rfe1 {[%clk 0:10:50]}  Nxd3 {[%clk 0:08:32]} 23. cxd3 {[%clk 0:07:39]}  Kf7 {[%clk 0:08:32]} 24. Rac1 {[%clk 0:07:39]}  Rd7 {[%clk 0:06:40]} 25. h3 {[%clk 0:07:35]}  Bd5 {[%clk 0:06:17]} 26. Be5 {[%clk 0:04:53]}  Qe7 {[%clk 0:05:04]} 27. Qb6 {[%clk 0:03:06]}  Ra8 {[%clk 0:05:13]} 28. Rb1 {[%clk 0:02:20]}  Rb7 {[%clk 0:03:51]} 29. Qe3 {[%clk 0:02:20]}  Rc8 {[%clk 0:03:51]} 30. d4 {[%clk 0:02:20]}  Rb6 {[%clk 0:03:21]} 31. Rbc1 {[%clk 0:01:15]}  Rbc6 {[%clk 0:03:21]} 32. Rc5 {[%clk 0:01:15]}  Rxc5 {[%clk 0:03:25]} 33. dxc5 {[%clk 0:00:52]}  Rxc5 {[%clk 0:03:25]} 34. Qf4 {[%clk 0:00:52]}  Rc2 {[%clk 0:03:25]} 35. Bd6 {[%clk 0:00:52]}  Qa7+ {[%clk 0:03:25]} 36. Kh2 {[%clk 0:00:40]}  Qf2 {[%clk 0:02:23]} 37. Qg5 {[%clk 0:00:16]}  Qxe1 {[%clk 0:02:23]} 38. Qe7+ {[%clk 0:00:16]}  Kg8 {[%clk 0:02:23]} 39. Qe8+ {[%clk 0:00:16]} 1/2-1/2


[Site "http://www.Chess.com"]

[Event "FIDE World Rapid Chess Championship 2021"]
[White "Sargsyan, Shant"]
[Black "Alonso Rosell, Alvar"]
[WhiteFideId "13306766"]
[BlackFideId "2270544"]
[WhiteElo "2344"]
[BlackElo "2571"]
[Result "0-1"]
[Round "03"]
[TimeControl "900+10"]
[Date "2021.12.26"]
[WhiteClock "0:00:01"]
[BlackClock "0:01:05"]

1. d4 {[%clk 0:15:00]}  Nf6 {[%clk 0:15:00]} 2. c4 {[%clk 0:15:00]}  e6 {[%clk 0:15:00]} 3. Nf3 {[%clk 0:15:00]}  d5 {[%clk 0:15:00]} 4. g3 {[%clk 0:15:17]}  Bb4+ {[%clk 0:15:00]} 5. Bd2 {[%clk 0:15:17]}  Be7 {[%clk 0:15:00]} 6. Bg2 {[%clk 0:15:17]}  O-O {[%clk 0:15:00]} 7. O-O {[%clk 0:15:17]}  Nbd7 {[%clk 0:15:00]} 8. Qc2 {[%clk 0:15:17]}  c6 {[%clk 0:15:00]} 9. Bf4 {[%clk 0:15:17]}  Nh5 {[%clk 0:15:24]} 10. Bc1 {[%clk 0:14:36]}  Nhf6 {[%clk 0:13:35]} 11. Nbd2 {[%clk 0:15:43]}  b6 {[%clk 0:13:35]} 12. e4 {[%clk 0:15:43]}  dxc4 {[%clk 0:12:58]} 13. Nxc4 {[%clk 0:15:22]}  Bb7 {[%clk 0:11:43]} 14. Rd1 {[%clk 0:13:18]}  c5 {[%clk 0:11:11]} 15. d5 {[%clk 0:10:27]}  exd5 {[%clk 0:07:47]} 16. e5 {[%clk 0:12:16]}  Ne8 {[%clk 0:07:04]} 17. Qf5 {[%clk 0:12:53]}  g6 {[%clk 0:03:35]} 18. Qh3 {[%clk 0:12:00]}  Ng7 {[%clk 0:02:54]} 19. Bh6 {[%clk 0:08:04]}  Qc8 {[%clk 0:03:02]} 20. Ng5 {[%clk 0:02:33]}  Bxg5 {[%clk 0:03:03]} 21. Nd6 {[%clk 0:00:40]}  Nxe5 {[%clk 0:03:03]} 22. Nxc8 {[%clk 0:00:51]}  Bxc8 {[%clk 0:02:14]} 23. g4 {[%clk 0:00:51]}  Bxg4 {[%clk 0:02:14]} 24. Qg3 {[%clk 0:00:51]}  Bxh6 {[%clk 0:02:14]} 25. Rxd5 {[%clk 0:00:51]}  Nh5 {[%clk 0:02:08]} 26. Qxe5 {[%clk 0:00:19]}  Rae8 {[%clk 0:02:08]} 27. Qc7 {[%clk 0:00:19]}  Nf4 {[%clk 0:02:08]} 28. Qxa7 {[%clk 0:00:19]}  Nxd5 {[%clk 0:02:08]} 29. Bxd5 {[%clk 0:00:31]}  Be6 {[%clk 0:00:26]} 30. Bxe6 {[%clk 0:00:31]}  Rxe6 {[%clk 0:00:26]} 31. Rd1 {[%clk 0:00:31]}  Bg7 {[%clk 0:00:26]} 32. Rd2 {[%clk 0:00:08]}  Bd4 {[%clk 0:00:40]} 33. Kg2 {[%clk 0:00:08]}  Rfe8 {[%clk 0:00:40]} 34. Qa6 {[%clk 0:00:08]}  Rf6 {[%clk 0:00:40]} 35. a4 {[%clk 0:00:08]}  Kg7 {[%clk 0:00:40]} 36. Qb5 {[%clk 0:00:08]}  Re4 {[%clk 0:00:40]} 37. f3 {[%clk 0:00:08]}  Re3 {[%clk 0:00:22]} 38. b4 {[%clk 0:00:08]}  Rb3 {[%clk 0:00:22]} 39. Rxd4 {[%clk 0:00:08]}  cxd4 {[%clk 0:00:22]} 40. Qc4 {[%clk 0:00:08]}  Ra3 {[%clk 0:00:29]} 41. Qxd4 {[%clk 0:00:11]}  Rxa4 {[%clk 0:00:29]} 42. h4 {[%clk 0:00:11]}  Ra2+ {[%clk 0:00:29]} 43. Kg1 {[%clk 0:00:11]}  Ra3 {[%clk 0:00:29]} 44. h5 {[%clk 0:00:11]}  Rxf3 {[%clk 0:00:29]} 45. b5 {[%clk 0:00:11]}  Rf5 {[%clk 0:00:29]} 46. h6+ {[%clk 0:00:11]}  Kxh6 {[%clk 0:00:29]} 47. Qe3+ {[%clk 0:00:11]}  Kg7 {[%clk 0:00:29]} 48. Qd4 {[%clk 0:00:01]}  Rxb5 {[%clk 0:01:05]} 0-1


[Site "http://www.Chess.com"]

[Event "FIDE World Rapid Chess Championship 2021"]
[White "Szpar, Milosz"]
[Black "Vakhidov, Jakhongir"]
[WhiteFideId "1184989"]
[BlackFideId "14201801"]
[WhiteElo "2315"]
[BlackElo "2566"]
[Result "1/2-1/2"]
[Round "03"]
[TimeControl "900+10"]
[Date "2021.12.26"]
[WhiteClock "0:00:00"]
[BlackClock "0:00:00"]

1. e4 {[%clk 0:15:07]}  c5 {[%clk 0:15:12]} 2. Nf3 {[%clk 0:15:07]}  g6 {[%clk 0:15:12]} 3. d4 {[%clk 0:15:07]}  cxd4 {[%clk 0:15:12]} 4. Nxd4 {[%clk 0:15:07]}  Bg7 {[%clk 0:15:12]} 5. c4 {[%clk 0:15:07]}  Nc6 {[%clk 0:15:12]} 6. Be3 {[%clk 0:15:07]}  Qb6 {[%clk 0:15:12]} 7. Nb3 {[%clk 0:15:07]}  Qd8 {[%clk 0:15:12]} 8. Qd2 {[%clk 0:15:07]}  Nf6 {[%clk 0:15:12]} 9. f3 {[%clk 0:15:07]}  d6 {[%clk 0:15:12]} 10. Nc3 {[%clk 0:13:59]}  O-O {[%clk 0:15:35]} 11. Be2 {[%clk 0:15:03]}  Be6 {[%clk 0:15:10]} 12. O-O {[%clk 0:14:50]}  Nd7 {[%clk 0:14:58]} 13. Rac1 {[%clk 0:14:49]}  a5 {[%clk 0:15:10]} 14. Nd4 {[%clk 0:14:49]}  Nxd4 {[%clk 0:15:17]} 15. Bxd4 {[%clk 0:12:12]}  Bxd4+ {[%clk 0:15:17]} 16. Qxd4 {[%clk 0:12:12]}  Qb6 {[%clk 0:15:17]} 17. Qxb6 {[%clk 0:13:33]}  Nxb6 {[%clk 0:13:29]} 18. Nd5 {[%clk 0:13:33]}  Bxd5 {[%clk 0:13:29]} 19. cxd5 {[%clk 0:13:33]}  Rac8 {[%clk 0:13:29]} 20. Bb5 {[%clk 0:12:18]}  f5 {[%clk 0:13:41]} 21. exf5 {[%clk 0:11:21]}  gxf5 {[%clk 0:13:41]} 22. Rfe1 {[%clk 0:11:21]}  Kf7 {[%clk 0:13:41]} 23. Bd3 {[%clk 0:10:43]}  Rxc1 {[%clk 0:13:15]} 24. Rxc1 {[%clk 0:10:43]}  Kf6 {[%clk 0:13:15]} 25. Rc7 {[%clk 0:08:23]}  Rb8 {[%clk 0:13:06]} 26. Bc4 {[%clk 0:08:18]}  Na4 {[%clk 0:12:33]} 27. Bb5 {[%clk 0:02:18]}  Nb6 {[%clk 0:06:28]} 28. Bc4 {[%clk 0:06:48]}  Na8 {[%clk 0:05:45]} 29. Rd7 {[%clk 0:04:53]}  Rc8 {[%clk 0:05:45]} 30. Bd3 {[%clk 0:07:00]}  Rc1+ {[%clk 0:03:01]} 31. Kf2 {[%clk 0:04:10]}  Nc7 {[%clk 0:03:01]} 32. Rd8 {[%clk 0:05:27]}  Nxd5 {[%clk 0:00:10]} 33. Rf8+ {[%clk 0:05:27]}  Kg7 {[%clk 0:00:10]} 34. Rxf5 {[%clk 0:04:49]}  e6 {[%clk 0:00:10]} 35. Rh5 {[%clk 0:03:44]}  h6 {[%clk 0:00:00]} 36. Be4 {[%clk 0:03:15]}  Nf4 {[%clk 0:00:00]} 37. Rxa5 {[%clk 0:03:15]}  d5 {[%clk 0:00:00]} 38. Kg3 {[%clk 0:03:15]}  Nh5+ {[%clk 0:00:00]} 39. Kf2 {[%clk 0:02:55]}  dxe4 {[%clk 0:00:00]} 40. Rxh5 {[%clk 0:02:55]}  Rc2+ {[%clk 0:00:00]} 41. Kg3 {[%clk 0:02:55]}  exf3 {[%clk 0:00:00]} 42. Kxf3 {[%clk 0:02:20]}  Rxb2 {[%clk 0:00:00]} 43. a4 {[%clk 0:02:20]}  Rb3+ {[%clk 0:00:00]} 44. Kf2 {[%clk 0:02:20]}  Rb4 {[%clk 0:00:00]} 45. Rb5 {[%clk 0:02:20]}  Rxa4 {[%clk 0:00:00]} 46. Rxb7+ {[%clk 0:02:20]}  Kf6 {[%clk 0:00:00]} 47. Rb8 {[%clk 0:02:20]}  h5 {[%clk 0:00:00]} 48. Rh8 {[%clk 0:02:04]}  Kg5 {[%clk 0:00:00]} 49. Kf3 {[%clk 0:02:04]}  Ra3+ {[%clk 0:00:00]} 50. Ke4 {[%clk 0:01:14]}  Ra2 {[%clk 0:00:00]} 51. Rg8+ {[%clk 0:01:14]}  Kf6 {[%clk 0:00:00]} 52. Rh8 {[%clk 0:01:14]}  Ra4+ {[%clk 0:00:00]} 53. Kf3 {[%clk 0:01:14]}  Kg6 {[%clk 0:00:00]} 54. Re8 {[%clk 0:01:14]}  Kf5 {[%clk 0:00:00]} 55. Rf8+ {[%clk 0:01:14]}  Ke5 {[%clk 0:00:00]} 56. Rh8 {[%clk 0:01:14]}  Ra3+ {[%clk 0:00:00]} 57. Kf2 {[%clk 0:01:00]}  Kd4 {[%clk 0:00:00]} 58. Rxh5 {[%clk 0:01:00]}  e5 {[%clk 0:00:00]} 59. g4 {[%clk 0:01:00]}  e4 {[%clk 0:00:00]} 60. Rh8 {[%clk 0:00:38]}  Ra2+ {[%clk 0:00:05]} 61. Kg3 {[%clk 0:00:38]}  e3 {[%clk 0:00:05]} 62. Re8 {[%clk 0:00:38]}  Kd3 {[%clk 0:00:05]} 63. g5 {[%clk 0:00:38]}  Ra1 {[%clk 0:00:05]} 64. h4 {[%clk 0:00:38]}  e2 {[%clk 0:00:05]} 65. h5 {[%clk 0:00:38]}  Ra5 {[%clk 0:00:05]} 66. Kg4 {[%clk 0:00:14]}  Ra4+ {[%clk 0:00:05]} 67. Kf5 {[%clk 0:00:14]}  Ra5+ {[%clk 0:00:05]} 68. Kg6 {[%clk 0:00:14]}  Ra4 {[%clk 0:00:00]} 69. Kf5 {[%clk 0:00:21]}  Ra5+ {[%clk 0:00:00]} 70. Kf6 {[%clk 0:00:21]}  Ra6+ {[%clk 0:00:00]} 71. Kg7 {[%clk 0:00:21]}  Ra8 {[%clk 0:00:00]} 72. Rxe2 {[%clk 0:00:21]}  Kxe2 {[%clk 0:00:00]} 73. g6 {[%clk 0:00:21]}  Kf3 {[%clk 0:00:00]} 74. Kh7 {[%clk 0:00:21]}  Kg4 {[%clk 0:00:00]} 75. h6 {[%clk 0:00:00]} 1/2-1/2


[Site "http://www.Chess.com"]

[Event "FIDE World Rapid Chess Championship 2021"]
[White "Babazada, Khazar"]
[Black "Jumabayev, Rinat"]
[WhiteFideId "13413554"]
[BlackFideId "13702661"]
[WhiteElo "2170"]
[BlackElo "2562"]
[Result "0-1"]
[Round "03"]
[TimeControl "900+10"]
[Date "2021.12.26"]
[WhiteClock "0:00:27"]
[BlackClock "0:00:21"]

1. e4 {[%clk 0:15:37]}  e6 {[%clk 0:15:36]} 2. d4 {[%clk 0:15:37]}  d5 {[%clk 0:15:36]} 3. Nc3 {[%clk 0:15:37]}  Nf6 {[%clk 0:15:36]} 4. e5 {[%clk 0:15:37]}  Nfd7 {[%clk 0:15:36]} 5. Nce2 {[%clk 0:15:37]}  c5 {[%clk 0:15:36]} 6. c3 {[%clk 0:15:37]}  Nc6 {[%clk 0:15:36]} 7. Nf3 {[%clk 0:15:37]}  Qb6 {[%clk 0:15:47]} 8. a3 {[%clk 0:15:53]}  f6 {[%clk 0:15:47]} 9. Nf4 {[%clk 0:15:53]}  cxd4 {[%clk 0:15:47]} 10. cxd4 {[%clk 0:15:53]}  fxe5 {[%clk 0:14:01]} 11. Nxe6 {[%clk 0:16:21]}  Nf6 {[%clk 0:14:01]} 12. Nxf8 {[%clk 0:13:35]}  Rxf8 {[%clk 0:13:16]} 13. dxe5 {[%clk 0:11:49]}  Ne4 {[%clk 0:13:25]} 14. Be3 {[%clk 0:11:49]}  Qxb2 {[%clk 0:13:33]} 15. Qc1 {[%clk 0:11:05]}  Qb3 {[%clk 0:12:56]} 16. Rb1 {[%clk 0:08:59]}  Qa4 {[%clk 0:12:56]} 17. Bb5 {[%clk 0:10:32]}  Qa5+ {[%clk 0:10:00]} 18. Nd2 {[%clk 0:10:32]}  Nxd2 {[%clk 0:10:09]} 19. Bxd2 {[%clk 0:03:47]}  Qc7 {[%clk 0:10:09]} 20. O-O {[%clk 0:03:47]}  Bf5 {[%clk 0:10:09]} 21. Rb3 {[%clk 0:03:47]}  a6 {[%clk 0:03:57]} 22. Bxc6+ {[%clk 0:08:02]}  Qxc6 {[%clk 0:02:53]} 23. Rc3 {[%clk 0:08:02]}  Qe6 {[%clk 0:02:53]} 24. Rc7 {[%clk 0:08:02]}  Rf7 {[%clk 0:02:53]} 25. Bb4 {[%clk 0:08:02]}  Rxc7 {[%clk 0:02:53]} 26. Qxc7 {[%clk 0:08:02]}  Qd7 {[%clk 0:02:53]} 27. Qc1 {[%clk 0:07:47]}  Rc8 {[%clk 0:03:01]} 28. Qg5 {[%clk 0:07:47]}  Kf7 {[%clk 0:02:56]} 29. f4 {[%clk 0:06:27]}  h6 {[%clk 0:02:46]} 30. Qh5+ {[%clk 0:05:50]}  Kg8 {[%clk 0:02:46]} 31. h3 {[%clk 0:04:59]}  d4 {[%clk 0:02:14]} 32. Qf3 {[%clk 0:04:08]}  Rc2 {[%clk 0:02:14]} 33. Bd6 {[%clk 0:02:33]}  Qb5 {[%clk 0:01:13]} 34. Rd1 {[%clk 0:02:33]}  Qc4 {[%clk 0:00:52]} 35. Bb4 {[%clk 0:01:08]}  d3 {[%clk 0:00:21]} 36. Rd2 {[%clk 0:01:08]}  Be4 {[%clk 0:00:21]} 37. Qe3 {[%clk 0:01:08]}  Qd5 {[%clk 0:00:21]} 38. e6 {[%clk 0:00:27]}  Qxe6 {[%clk 0:00:21]} 39. Qd4 {[%clk 0:00:27]}  Qf5 {[%clk 0:00:21]} 40. Bc3 {[%clk 0:00:27]}  Rc1+ {[%clk 0:00:21]} 0-1


[Site "http://www.Chess.com"]

[Event "FIDE World Rapid Chess Championship 2021"]
[White "Socko, Bartosz"]
[Black "Costachi, Mihnea"]
[WhiteFideId "1107038"]
[BlackFideId "1217518"]
[WhiteElo "2562"]
[BlackElo "2443"]
[Result "1-0"]
[Round "03"]
[TimeControl "900+10"]
[Date "2021.12.26"]
[WhiteClock "0:01:22"]
[BlackClock "0:00:21"]

1. d4 {[%clk 0:15:51]}  Nf6 {[%clk 0:15:18]} 2. c4 {[%clk 0:15:51]}  c6 {[%clk 0:15:18]} 3. Nf3 {[%clk 0:15:51]}  d5 {[%clk 0:15:18]} 4. Nbd2 {[%clk 0:15:51]}  g6 {[%clk 0:15:18]} 5. g3 {[%clk 0:15:51]}  Bg7 {[%clk 0:15:18]} 6. Bg2 {[%clk 0:15:51]}  O-O {[%clk 0:15:18]} 7. O-O {[%clk 0:15:51]}  Nbd7 {[%clk 0:15:18]} 8. b3 {[%clk 0:15:51]}  a5 {[%clk 0:15:18]} 9. Bb2 {[%clk 0:15:51]}  a4 {[%clk 0:14:44]} 10. Qc2 {[%clk 0:15:44]}  Qa5 {[%clk 0:13:31]} 11. Bc3 {[%clk 0:15:53]}  Qa6 {[%clk 0:13:31]} 12. e4 {[%clk 0:15:37]}  dxe4 {[%clk 0:13:14]} 13. Ng5 {[%clk 0:15:37]}  Rd8 {[%clk 0:12:59]} 14. Ngxe4 {[%clk 0:14:35]}  Nxe4 {[%clk 0:12:59]} 15. Nxe4 {[%clk 0:14:35]}  Qb6 {[%clk 0:12:59]} 16. b4 {[%clk 0:14:22]}  Nf6 {[%clk 0:11:58]} 17. Nc5 {[%clk 0:14:22]}  Bf5 {[%clk 0:11:58]} 18. Qe2 {[%clk 0:14:22]}  Qc7 {[%clk 0:10:42]} 19. Rfe1 {[%clk 0:13:24]}  Re8 {[%clk 0:10:44]} 20. Rac1 {[%clk 0:13:33]}  Nd7 {[%clk 0:09:46]} 21. Nd3 {[%clk 0:12:15]}  Nb6 {[%clk 0:08:03]} 22. Nf4 {[%clk 0:10:06]}  Rad8 {[%clk 0:08:03]} 23. c5 {[%clk 0:10:06]}  Nd5 {[%clk 0:07:31]} 24. Nxd5 {[%clk 0:10:03]}  cxd5 {[%clk 0:07:31]} 25. b5 {[%clk 0:10:03]}  e5 {[%clk 0:06:29]} 26. Qd2 {[%clk 0:09:58]}  Rc8 {[%clk 0:06:00]} 27. dxe5 {[%clk 0:09:42]}  Qxc5 {[%clk 0:02:13]} 28. Qxd5 {[%clk 0:09:42]}  Bh6 {[%clk 0:02:13]} 29. Qxc5 {[%clk 0:07:31]}  Rxc5 {[%clk 0:02:14]} 30. f4 {[%clk 0:06:30]}  Rxb5 {[%clk 0:02:14]} 31. Bf1 {[%clk 0:06:30]}  Rc5 {[%clk 0:01:35]} 32. Bb4 {[%clk 0:06:02]}  Rxc1 {[%clk 0:01:35]} 33. Rxc1 {[%clk 0:06:02]}  Rxe5 {[%clk 0:01:35]} 34. Rc7 {[%clk 0:06:02]}  Re4 {[%clk 0:01:28]} 35. Rxb7 {[%clk 0:06:02]}  Bf8 {[%clk 0:01:28]} 36. Bxf8 {[%clk 0:05:49]}  Kxf8 {[%clk 0:00:50]} 37. Bd3 {[%clk 0:04:49]}  Rd4 {[%clk 0:00:35]} 38. Bxf5 {[%clk 0:02:17]}  gxf5 {[%clk 0:00:35]} 39. Rb2 {[%clk 0:02:17]}  Rd1+ {[%clk 0:00:35]} 40. Kf2 {[%clk 0:02:17]}  Ra1 {[%clk 0:00:35]} 41. Ke3 {[%clk 0:02:17]}  Kg7 {[%clk 0:00:35]} 42. Kd4 {[%clk 0:01:48]}  Rc1 {[%clk 0:00:22]} 43. Rb4 {[%clk 0:01:48]}  Rc2 {[%clk 0:00:22]} 44. Rxa4 {[%clk 0:01:48]}  Rxh2 {[%clk 0:00:22]} 45. Ke3 {[%clk 0:01:34]}  Kg6 {[%clk 0:00:41]} 46. Ra7 {[%clk 0:01:34]}  h5 {[%clk 0:00:41]} 47. Ra6+ {[%clk 0:01:34]}  f6 {[%clk 0:00:41]} 48. a4 {[%clk 0:01:34]}  h4 {[%clk 0:00:41]} 49. gxh4 {[%clk 0:01:34]}  Rh3+ {[%clk 0:00:41]} 50. Kf2 {[%clk 0:01:34]}  Rxh4 {[%clk 0:00:41]} 51. Kg3 {[%clk 0:01:34]}  Rh1 {[%clk 0:01:01]} 52. Rc6 {[%clk 0:01:05]}  Ra1 {[%clk 0:01:01]} 53. Rc4 {[%clk 0:01:05]}  Ra3+ {[%clk 0:01:01]} 54. Kf2 {[%clk 0:01:05]}  Kh5 {[%clk 0:01:12]} 55. Ke2 {[%clk 0:00:56]}  Kg4 {[%clk 0:01:12]} 56. Kd2 {[%clk 0:00:56]}  Rh3 {[%clk 0:01:12]} 57. Kc2 {[%clk 0:00:56]}  Re3 {[%clk 0:01:12]} 58. Kb2 {[%clk 0:00:56]}  Re2+ {[%clk 0:01:12]} 59. Kb3 {[%clk 0:00:56]}  Re1 {[%clk 0:00:21]} 60. a5 {[%clk 0:01:42]}  Rb1+ {[%clk 0:00:21]} 61. Ka4 {[%clk 0:01:42]}  Kf3 {[%clk 0:00:21]} 62. a6 {[%clk 0:01:42]}  Ke3 {[%clk 0:00:21]} 63. Ka5 {[%clk 0:01:29]}  Kd3 {[%clk 0:00:19]} 64. Rb4 {[%clk 0:01:29]}  Ra1+ {[%clk 0:00:19]} 65. Ra4 {[%clk 0:01:29]}  Rh1 {[%clk 0:00:21]} 66. a7 {[%clk 0:01:22]}  Rh8 {[%clk 0:00:21]} 67. Kb6 {[%clk 0:01:22]}  Ke3 {[%clk 0:00:21]} 68. Kc6 {[%clk 0:01:22]}  Ra8 {[%clk 0:00:21]} 69. Kb7 {[%clk 0:01:22]}  Rh8 {[%clk 0:00:21]} 70. a8=Q {[%clk 0:01:22]}  Rxa8 {[%clk 0:00:21]} 71. Kxa8 {[%clk 0:01:22]} 1-0


[Site "http://www.Chess.com"]